fUST/lending_fUST_20250302
["ID","MTS","AMOUNT","RATE_DAILY","PERIOD"]
[355094284,1740890846407,-189.38225748,0.00021995,2]
[355094285,1740890846435,-661.59407397,0.00021995,2]
[355094286,1740890846459,-180.15983711,0.00021995,2]
[355094287,1740890850075,-481.43423686,0.00021995,2]
[355094288,1740890850100,-425.29210303,0.00021995,2]
[355094289,1740890948102,-176.489594,0.00020996,2]
[355094290,1740890959212,-590.12958575,0.00021895,2]
[355094291,1740890959235,-151.68166078,0.00021951,2]
[355094292,1740890959257,-488.24527153,0.00021973,2]
[355094293,1740890959279,-174.7,0.00021986,3]
[355094294,1740890959302,-300.0,0.00021993,2]
[355094295,1740890959327,-500.0,0.00021994,2]
[355094296,1740890959350,-500.0,0.00021994,2]
[355094297,1740890959372,-500.0,0.00021994,2]
[355094298,1740890959394,-500.0,0.00021994,2]
[355094299,1740890959416,-500.0,0.00021994,2]
[355094300,1740890959442,-500.0,0.00021994,2]
[355094301,1740890959465,-500.0,0.00021994,2]
[355094302,1740890959488,-500.0,0.00021994,2]
[355094303,1740890959511,-500.0,0.00021994,2]
[355094304,1740890959534,-500.0,0.00021994,2]
[355094305,1740890959556,-500.0,0.00021994,2]
[355094306,1740890959579,-500.0,0.00021994,2]
[355094307,1740890959601,-500.0,0.00021994,2]
[355094308,1740890959624,-500.0,0.00021994,2]
[355094309,1740890959647,-500.0,0.00021994,2]
[355094310,1740890959669,-500.0,0.00021994,2]
[355094311,1740890959696,-500.0,0.00021994,2]
[355094312,1740890959719,-500.0,0.00021994,2]
[355094313,1740890959740,-500.0,0.00021994,2]
[355094314,1740890959765,-500.0,0.00021994,2]
[355094315,1740890959788,-500.0,0.00021994,2]
[355094316,1740890959812,-500.0,0.00021994,2]
[355094317,1740890959834,-500.0,0.00021994,2]
[355094318,1740890959856,-500.0,0.00021994,2]
[355094319,1740890959880,-500.0,0.00021994,2]
[355094320,1740890959902,-500.0,0.00021994,2]
[355094321,1740890959924,-500.0,0.00021994,2]
[355094322,1740890959947,-500.0,0.00021994,2]
[355094323,1740890959969,-500.0,0.00021994,2]
[355094324,1740890959992,-500.0,0.00021994,2]
[355094325,1740890960014,-500.0,0.00021994,2]
[355094326,1740890960035,-500.0,0.00021994,2]
[355094327,1740890960057,-500.0,0.00021994,2]
[355094328,1740890960080,-500.0,0.00021994,2]
[355094329,1740890960102,-500.0,0.00021994,2]
[355094330,1740890960124,-500.0,0.00021994,2]
[355094331,1740890960147,-500.0,0.00021994,2]
[355094332,1740890960169,-573.84614097,0.00021994,2]
[355094333,1740890960192,-500.0,0.00021994,2]
[355094334,1740890960214,-1256.14399338,0.00021994,2]
[355094335,1740890960236,-1256.14399338,0.00021994,2]
[355094336,1740890960258,-1256.14399338,0.00021994,2]
[355094337,1740890960281,-1256.14399338,0.00021994,2]
[355094338,1740890960304,-1256.14399338,0.00021994,2]
[355094339,1740890960326,-1256.14399338,0.00021994,2]
[355094340,1740890960348,-1256.14399338,0.00021994,2]
[355094341,1740890960371,-1256.14399338,0.00021994,2]
[355094342,1740890960393,-1256.14399338,0.00021994,2]
[355094343,1740890960415,-1256.14399338,0.00021994,2]
[355094344,1740890960437,-1256.14399338,0.00021994,2]
[355094345,1740890960460,-1256.14399338,0.00021994,2]
[355094346,1740890960483,-1256.14399338,0.00021994,2]
[355094347,1740890960506,-1256.14399338,0.00021994,2]
[355094348,1740890960528,-1256.14399338,0.00021994,2]
[355094349,1740890960550,-1256.14399338,0.00021994,2]
[355094350,1740890960573,-1256.14399338,0.00021994,2]
[355094351,1740890960595,-1256.14399338,0.00021994,2]
[355094352,1740890960618,-1256.14399338,0.00021994,2]
[355094353,1740890960640,-1256.14399338,0.00021994,2]
[355094354,1740890960663,-1256.14399338,0.00021994,2]
[355094355,1740890960690,-1256.14399338,0.00021994,2]
[355094356,1740890960712,-1256.14399338,0.00021994,2]
[355094357,1740890960734,-1256.14399338,0.00021994,2]
[355094358,1740890960758,-1256.14399338,0.00021994,2]
[355094359,1740890960780,-1256.14399338,0.00021994,2]
[355094360,1740890960802,-1256.14399338,0.00021994,2]
[355094361,1740890960824,-1256.14399338,0.00021994,2]
[355094362,1740890960847,-1256.14399338,0.00021994,2]
[355094363,1740890960869,-1256.14399338,0.00021994,2]
[355094364,1740890960890,-1371.70924076,0.00021994,2]
[355094365,1740890960912,-1371.70924076,0.00021994,2]
[355094366,1740890960934,-1371.70924076,0.00021994,2]
[355094367,1740890960957,-1371.70924076,0.00021994,2]
[355094368,1740890960981,-1371.70924076,0.00021994,2]
[355094369,1740890961003,-1371.70924076,0.00021994,2]
[355094370,1740890961029,-1371.70924076,0.00021994,2]
[355094371,1740890961051,-1371.70924076,0.00021994,2]
[355094372,1740890961074,-1371.70924076,0.00021994,2]
[355094373,1740890961096,-1371.70924076,0.00021994,2]
[355094374,1740890961118,-1371.70924076,0.00021994,2]
[355094375,1740890961141,-1371.70924076,0.00021994,2]
[355094376,1740890961164,-1371.70924076,0.00021994,2]
[355094377,1740890961186,-1371.70924076,0.00021994,2]
[355094378,1740890961208,-1371.70924076,0.00021994,2]
[355094379,1740890961230,-1371.70924076,0.00021994,2]
[355094380,1740890961260,-1371.70924076,0.00021994,2]
[355094381,1740890961286,-1371.70924076,0.00021994,2]
[355094382,1740890961306,-3815.13,0.00021995,2]
[355094383,1740890961328,-2139.17,0.00021995,2]
[355094384,1740890961349,-1000.0,0.00021995,5]
[355094385,1740890961371,-670.21,0.00021995,2]
[355094386,1740890961392,-500.0,0.00021995,2]
[355094387,1740890961412,-502.66,0.00021995,2]
[355094388,1740890961432,-500.0,0.00021995,2]
[355094389,1740890961454,-500.0,0.00021995,2]
[355094390,1740890961475,-500.0,0.00021996,2]
[355094391,1740890961494,-505.8939088,0.00021996,2]
[355094392,1740890961514,-500.0,0.00021996,2]
[355094393,1740890961549,-500.0,0.00021996,2]
[355094394,1740890961572,-500.0,0.00021996,2]
[355094395,1740890961592,-500.0,0.00021996,2]
[355094396,1740890961613,-500.0,0.00021996,2]
[355094397,1740890961636,-500.0,0.00021996,2]
[355094398,1740890961656,-500.0,0.00021996,2]
[355094399,1740890961679,-500.0,0.00021996,2]
[355094400,1740890961700,-500.0,0.00021996,2]
[355094401,1740890961720,-500.0,0.00021996,2]
[355094402,1740890961741,-500.0,0.00021996,2]
[355094403,1740890961764,-500.0,0.00021996,2]
[355094404,1740890961785,-500.0,0.00021996,2]
[355094405,1740890961805,-500.0,0.00021996,2]
[355094406,1740890961826,-500.0,0.00021996,2]
[355094407,1740890961847,-516.82105827,0.00021996,2]
[355094408,1740890961867,-584.7372218,0.00021996,2]
[355094409,1740890961888,-500.0,0.00021996,2]
[355094410,1740890961908,-500.0,0.00021996,2]
[355094411,1740890961929,-500.0,0.00021996,2]
[355094412,1740890961950,-500.0,0.00021996,2]
[355094413,1740890961970,-500.0,0.00021996,2]
[355094414,1740890961992,-500.0,0.00021996,2]
[355094415,1740890962014,-503.7359123,0.00021996,2]
[355094416,1740890962036,-500.0,0.00021996,2]
[355094417,1740890962058,-500.0,0.00021996,2]
[355094418,1740890962080,-500.0,0.00021996,2]
[355094419,1740890962102,-306.7709541,0.00021996,2]
[355094420,1740890962123,-504.39967408,0.00021996,2]
[355094421,1740890962147,-500.0,0.00021996,2]
[355094422,1740890962168,-500.0,0.00021996,2]
[355094423,1740890962190,-500.0,0.00021996,2]
[355094424,1740890962219,-500.0,0.00021996,2]
[355094425,1740890962244,-500.0,0.00021996,2]
[355094426,1740890962267,-500.0,0.00021996,2]
[355094427,1740890962291,-500.0,0.00021996,2]
[355094428,1740890962314,-613.79440752,0.00021996,2]
[355094429,1740890962335,-500.0,0.00021996,2]
[355094430,1740890962358,-500.0,0.00021996,2]
[355094431,1740890962380,-506.82639246,0.00021996,2]
[355094432,1740890962402,-500.0,0.00021996,2]
[355094433,1740890962427,-500.0,0.00021996,2]
[355094434,1740890962450,-500.0,0.00021996,2]
[355094435,1740890962472,-500.0,0.00021996,2]
[355094436,1740890962494,-500.0,0.00021996,2]
[355094437,1740890962516,-508.91786221,0.00021996,2]
[355094438,1740890962538,-500.0,0.00021996,2]
[355094439,1740890962560,-245.16589319,0.00021996,2]
[355094440,1740890962583,-533.76,0.00021996,2]
[355094441,1740890962605,-500.0,0.00021996,2]
[355094442,1740890962628,-500.0,0.00021996,2]
[355094443,1740890962650,-500.0,0.00021996,2]
[355094444,1740890962673,-500.0,0.00021996,2]
[355094445,1740890962696,-500.0,0.00021996,2]
[355094446,1740890962717,-500.0,0.00021996,2]
[355094447,1740890962738,-500.0,0.00021996,2]
[355094448,1740890962762,-500.0,0.00021996,2]
[355094449,1740890962784,-500.0,0.00021996,2]
[355094450,1740890962807,-500.0,0.00021996,2]
[355094451,1740890962830,-167.52449521,0.00021996,2]
[355094452,1740890962852,-500.0,0.00021996,2]
[355094453,1740890962874,-500.0,0.00021996,2]
[355094454,1740890962897,-500.0,0.00021996,2]
[355094455,1740890962919,-500.0,0.00021996,2]
[355094456,1740890962942,-500.0,0.00021996,2]
[355094457,1740890962964,-500.0,0.00021996,2]
[355094458,1740890962986,-500.0,0.00021996,2]
[355094459,1740890963008,-500.0,0.00021996,2]
[355094460,1740890963031,-500.0,0.00021996,2]
[355094461,1740890963056,-529.12,0.00021997,2]
[355094462,1740890963078,-500.0,0.00021997,2]
[355094463,1740890963101,-1081.21,0.00021997,2]
[355094464,1740890963123,-500.0,0.00021997,2]
[355094465,1740890963147,-500.0,0.00021997,2]
[355094466,1740890963171,-3154.56,0.00021997,2]
[355094467,1740890963195,-500.0,0.00021997,2]
[355094468,1740890963218,-757.84,0.00021997,2]
[355094469,1740890963243,-5714.54,0.00021997,2]
[355094470,1740890963267,-500.0,0.00021997,2]
[355094471,1740890963289,-500.0,0.00021997,2]
[355094472,1740890963314,-7144.51,0.00021997,2]
[355094473,1740890963337,-1154.3,0.00021997,2]
[355094474,1740890963361,-574.42,0.00021997,2]
[355094475,1740890963383,-500.0,0.00021997,2]
[355094476,1740890963406,-500.0,0.00021997,2]
[355094477,1740890963429,-2973.81,0.00021997,2]
[355094478,1740890963452,-914.1,0.00021997,2]
[355094479,1740890963476,-500.0,0.00021997,2]
[355094480,1740890963501,-201.63844117,0.00021997,2]
[355094481,1740890963524,-500.0,0.00021997,2]
[355094482,1740890963547,-505.03,0.00021997,2]
[355094483,1740890963571,-500.0,0.00021997,2]
[355094484,1740890963594,-500.0,0.00021997,2]
[355094485,1740890963619,-1772.49,0.00021997,2]
[355094486,1740890963642,-682.1,0.00021997,2]
[355094487,1740890963666,-3795.35,0.00021997,2]
[355094488,1740890963692,-500.0,0.00021997,2]
[355094489,1740890963716,-543.9,0.00021997,2]
[355094490,1740890963739,-5730.46,0.00021997,2]
[355094491,1740890963763,-500.0,0.00021997,2]
[355094492,1740890963787,-4535.27,0.00021997,2]
[355094493,1740890963810,-500.0,0.00021997,2]
[355094494,1740890963833,-500.0,0.00021997,2]
[355094495,1740890963856,-500.0,0.00021997,2]
[355094496,1740890963879,-500.0,0.00021997,2]
[355094497,1740890963914,-500.0,0.00021997,2]
[355094498,1740890963944,-1236.92,0.00021997,2]
[355094499,1740890963971,-1887.83,0.00021997,2]
[355094500,1740890963996,-500.0,0.00021997,2]
[355094501,1740890964021,-500.0,0.00021997,2]
[355094502,1740890964045,-713.67,0.00021997,2]
[355094503,1740890964069,-500.0,0.00021997,2]
[355094504,1740890964094,-500.0,0.00021997,2]
[355094505,1740890964118,-1282.57,0.00021997,2]
[355094506,1740890964142,-500.0,0.00021997,2]
[355094507,1740890964166,-500.0,0.00021997,2]
[355094508,1740890964190,-388.41483866,0.00021998,2]
[355094509,1740890964215,-327.07772371,0.00021998,2]
[355094510,1740890964239,-500.0,0.00021999,2]
[355094511,1740890964263,-500.0,0.00021999,2]
[355094512,1740890964286,-500.0,0.00021999,2]
[355094513,1740890964310,-500.0,0.00021999,2]
[355094514,1740890964332,-500.0,0.00021999,2]
[355094515,1740890964356,-500.0,0.00021999,2]
[355094516,1740890964380,-505.9588988,0.00021999,2]
[355094517,1740890964404,-500.0,0.00021999,2]
[355094518,1740890964428,-500.0,0.00021999,2]
[355094519,1740890964452,-724.09,0.00021999,2]
[355094520,1740890964477,-500.0,0.00021999,2]
[355094521,1740890964501,-500.0,0.00021999,2]
[355094522,1740890964525,-500.0,0.00021999,2]
[355094523,1740890964549,-730.08,0.00021999,2]
[355094524,1740890964580,-500.0,0.00021999,2]
[355094525,1740890964607,-215.18,0.00021999,2]
[355094526,1740890964633,-500.0,0.00021999,2]
[355094527,1740890964658,-500.0,0.00021999,2]
[355094528,1740890964686,-944.38,0.00021999,2]
[355094529,1740890964937,-500.0,0.00021999,2]
[355094530,1740890965004,-500.0,0.00021999,2]
[355094531,1740890965026,-500.0,0.00021999,2]
[355094532,1740890965048,-570.76,0.00021999,2]
[355094533,1740890965069,-500.0,0.00021999,2]
[355094534,1740890965090,-500.0,0.00021999,2]
[355094535,1740890965112,-500.0,0.00021999,2]
[355094536,1740890965133,-500.0,0.00021999,2]
[355094537,1740890965156,-500.0,0.00021999,2]
[355094538,1740890965179,-503.03,0.00021999,2]
[355094539,1740890965201,-500.0,0.00021999,2]
[355094540,1740890965223,-500.0,0.00021999,2]
[355094541,1740890965245,-995.77,0.00021999,2]
[355094542,1740890965267,-500.0,0.00021999,2]
[355094543,1740890965288,-574.97,0.00021999,2]
[355094544,1740890965310,-500.0,0.00021999,2]
[355094545,1740890965332,-500.0,0.00021999,2]
[355094546,1740890965354,-500.0,0.00021999,2]
[355094547,1740890965375,-500.0,0.00021999,2]
[355094548,1740890965397,-500.0,0.00021999,2]
[355094549,1740890965419,-500.0,0.00021999,2]
[355094550,1740890965441,-500.0,0.00021999,2]
[355094551,1740890965463,-500.0,0.00021999,2]
[355094552,1740890965485,-921.28,0.00021999,2]
[355094553,1740890965506,-500.0,0.00021999,2]
[355094554,1740890965528,-500.0,0.00021999,2]
[355094555,1740890965550,-500.0,0.00021999,2]
[355094556,1740890965572,-500.0,0.00021999,2]
[355094557,1740890965595,-500.0,0.00021999,2]
[355094558,1740890965616,-500.0,0.00021999,2]
[355094559,1740890965637,-500.0,0.00021999,2]
[355094560,1740890965660,-500.0,0.00021999,2]
[355094561,1740890965685,-500.0,0.00021999,2]
[355094562,1740890965707,-500.0,0.00021999,2]
[355094563,1740890965729,-539.23,0.00021999,2]
[355094564,1740890965754,-500.0,0.00021999,2]
[355094565,1740890965777,-500.0,0.00021999,2]
[355094566,1740890965801,-500.0,0.00021999,2]
[355094567,1740890965824,-4383.9,0.00021999,2]
[355094568,1740890965848,-7022.25,0.00021999,2]
[355094569,1740890965870,-500.0,0.00021999,2]
[355094570,1740890965895,-500.0,0.00021999,2]
[355094571,1740890965918,-500.0,0.00021999,2]
[355094572,1740890965940,-2334.98,0.00021999,2]
[355094573,1740890965962,-500.0,0.00021999,2]
[355094574,1740890965984,-900.39,0.00021999,2]
[355094575,1740890966006,-500.0,0.00021999,2]
[355094576,1740890966028,-581.06,0.00021999,2]
[355094577,1740890966050,-693.9,0.00021999,2]
[355094578,1740890966071,-500.0,0.00021999,2]
[355094579,1740890966093,-500.0,0.00021999,2]
[355094580,1740890966115,-690.0,0.00021999,2]
[355094581,1740890966137,-500.0,0.00021999,2]
[355094582,1740890966159,-500.0,0.00021999,2]
[355094583,1740890966180,-500.0,0.00021999,2]
[355094584,1740890966203,-500.0,0.00021999,2]
[355094585,1740890966224,-586.41,0.00021999,2]
[355094586,1740890966246,-500.0,0.00021999,2]
[355094587,1740890966270,-2170.79,0.00021999,2]
[355094588,1740890966292,-500.0,0.00021999,2]
[355094589,1740890966314,-500.0,0.00021999,2]
[355094590,1740890966337,-500.0,0.00021999,2]
[355094591,1740890966359,-500.0,0.00021999,2]
[355094592,1740890966381,-500.0,0.00021999,2]
[355094593,1740890966403,-500.0,0.00021999,2]
[355094594,1740890966426,-500.0,0.00021999,2]
[355094595,1740890966448,-500.0,0.00021999,2]
[355094596,1740890966471,-1564.87,0.00021999,2]
[355094597,1740890966494,-500.0,0.00021999,2]
[355094598,1740890966516,-500.0,0.00021999,2]
[355094599,1740890966539,-1548.28,0.00021999,2]
[355094600,1740890966561,-500.0,0.00021999,2]
[355094601,1740890966583,-500.0,0.00021999,2]
[355094602,1740890966605,-500.0,0.00021999,2]
[355094603,1740890966627,-636.65,0.00021999,2]
[355094604,1740890966649,-500.0,0.00021999,2]
[355094605,1740890966672,-80347.49,0.00021999,2]
[355094606,1740890966698,-500.0,0.00021999,2]
[355094607,1740890966720,-500.0,0.00021999,2]
[355094608,1740890966743,-1814.59,0.00021999,2]
[355094609,1740890966767,-983.66,0.00021999,2]
[355094610,1740890966789,-500.0,0.00021999,2]
[355094611,1740890966811,-2298.01,0.00021999,2]
[355094612,1740890966835,-500.0,0.00021999,2]
[355094613,1740890966857,-500.0,0.00021999,2]
[355094614,1740890966879,-500.0,0.00021999,2]
[355094615,1740890966900,-500.0,0.00021999,2]
[355094616,1740890966922,-500.0,0.00021999,2]
[355094617,1740890966944,-500.0,0.00021999,2]
[355094618,1740890966967,-500.0,0.00021999,2]
[355094619,1740890966988,-500.0,0.00021999,2]
[355094620,1740890967010,-500.0,0.00021999,2]
[355094621,1740890967033,-500.0,0.00021999,2]
[355094622,1740890967055,-500.0,0.00021999,2]
[355094623,1740890967077,-500.0,0.00021999,2]
[355094624,1740890967099,-500.0,0.00021999,2]
[355094625,1740890967121,-500.0,0.00021999,2]
[355094626,1740890967143,-500.0,0.00021999,2]
[355094627,1740890967165,-500.0,0.00021999,2]
[355094628,1740890967187,-533.89425534,0.00021999,2]
[355094629,1740890967210,-568.53,0.00021999,2]
[355094630,1740890967233,-675.58,0.00021999,2]
[355094631,1740890967255,-500.0,0.00021999,2]
[355094632,1740890967280,-169038.43490893,0.00022,2]
[355094633,1740890967578,-753.47,0.00021996,2]
[355094634,1740890967601,-500.0,0.00021996,2]
[355094635,1740890967624,-247446.21340312,0.00022,2]
[355094636,1740890968208,-594.37,0.00021995,2]
[355094637,1740890968229,-500.0,0.00021997,2]
[355094638,1740890968250,-500.0,0.00021999,2]
[355094639,1740890968271,-500.0,0.00021999,2]
[355094640,1740890968293,-22626.93383446,0.00022,2]
[355094641,1740890968361,-524.14,0.00021989,3]
[355094642,1740890968382,-500.0,0.00021997,2]
[355094643,1740890968404,-56163.31826581,0.00022,2]
[355094644,1740890971088,-500.0,0.00021995,2]
[355094645,1740890971110,-500.0,0.00021996,2]
[355094646,1740890971131,-500.0,0.00021996,2]
[355094647,1740890971153,-500.0,0.00021997,2]
[355094648,1740890971175,-500.0,0.00021997,2]
[355094649,1740890971196,-500.0,0.00021999,2]
[355094650,1740890971219,-33.247,0.00022,2]
[355094651,1740890971256,-309683.70158098,0.00022,2]
[355094652,1740890972088,-39959.07647058,0.00022,2]
[355094653,1740891009556,229.07175971,0.00020261,2]
[355094687,1740891032814,-625.31703872,0.00020261,2]
[355094688,1740891032826,-165.4899017,0.00020996,2]
[355094690,1740891032836,-484.46943992,0.00021274,2]
[355094692,1740891032845,-151.0,0.00021987,2]
[355094694,1740891032855,-500.0,0.00021987,2]
[355094696,1740891032865,-550.0,0.00021987,2]
[355094698,1740891032875,-605.0,0.00021987,2]
[355094700,1740891032886,-665.5,0.00021987,2]
[355094702,1740891032896,-732.05,0.00021987,2]
[355094704,1740891032905,-805.255,0.00021987,2]
[355094706,1740891032917,-885.7805,0.00021987,2]
[355094708,1740891032927,-974.35855,0.00021987,2]
[355094710,1740891032936,-1000.0,0.00021987,2]
[355094711,1740891032945,-412.20228745,0.00021987,2]
[355094712,1740891032956,-300.0,0.00021994,2]
[355094713,1740891032965,-500.0,0.00021995,2]
[355094714,1740891032975,-3134.93,0.00021995,2]
[355094715,1740891032984,-500.0,0.00021995,2]
[355094716,1740891032994,-500.0,0.00021995,2]
[355094717,1740891033004,-767.93,0.00021995,2]
[355094718,1740891033014,-500.0,0.00021995,2]
[355094719,1740891033023,-500.0,0.00021995,2]
[355094720,1740891033033,-7112.25,0.00021995,2]
[355094721,1740891033043,-5667.16,0.00021995,2]
[355094722,1740891033054,-3514.94,0.00021995,2]
[355094723,1740891033064,-500.0,0.00021996,2]
[355094724,1740891033074,-500.0,0.00021996,2]
[355094725,1740891033084,-500.0,0.00021996,2]
[355094726,1740891033094,-500.0,0.00021996,2]
[355094727,1740891033104,-500.0,0.00021996,2]
[355094728,1740891033114,-500.0,0.00021996,2]
[355094729,1740891033124,-500.0,0.00021996,2]
[355094730,1740891033134,-500.0,0.00021996,2]
[355094731,1740891033144,-227.07979878,0.00021996,2]
[355094732,1740891033154,-500.0,0.00021996,2]
[355094733,1740891033164,-500.0,0.00021996,2]
[355094734,1740891033174,-500.0,0.00021996,2]
[355094735,1740891033184,-506.90062895,0.00021996,2]
[355094736,1740891033194,-500.0,0.00021996,2]
[355094737,1740891033204,-500.0,0.00021996,2]
[355094738,1740891033214,-500.0,0.00021996,2]
[355094739,1740891033224,-500.0,0.00021996,2]
[355094740,1740891033234,-500.0,0.00021996,2]
[355094741,1740891033244,-500.0,0.00021996,2]
[355094742,1740891033254,-531.10089574,0.00021996,2]
[355094743,1740891033265,-500.0,0.00021996,2]
[355094744,1740891033275,-250.0,0.00021996,2]
[355094745,1740891033287,-500.0,0.00021996,2]
[355094746,1740891033296,-501.47775902,0.00021996,2]
[355094747,1740891033306,-2373.21,0.00021997,2]
[355094748,1740891033315,-6974.83,0.00021997,2]
[355094749,1740891033325,-706.65,0.00021997,2]
[355094750,1740891033335,-904.54,0.00021997,2]
[355094751,1740891033344,-598.51,0.00021997,2]
[355094752,1740891033354,-2161.29,0.00021997,2]
[355094753,1740891033364,-190.64151953,0.00021997,2]
[355094754,1740891033374,-500.0,0.00021999,2]
[355094755,1740891033384,-500.0,0.00021999,2]
[355094756,1740891033394,-500.0,0.00021999,2]
[355094757,1740891033404,-500.0,0.00021999,2]
[355094758,1740891033414,-503.95055505,0.00021999,2]
[355094759,1740891033426,-500.0,0.00021999,2]
[355094760,1740891033436,-500.0,0.00021999,2]
[355094761,1740891033445,-500.0,0.00021999,2]
[355094762,1740891033456,-500.0,0.00021999,2]
[355094763,1740891033466,-500.0,0.00021999,2]
[355094764,1740891033476,-500.0,0.00021999,2]
[355094765,1740891033487,-1392.87090105,0.00021999,2]
[355094766,1740891033599,-12.06909895,0.00021999,2]
[355094767,1740891033609,-53.76485202,0.00021999,2]
[355094771,1740891038436,-500.0,0.00021998,2]
[355094772,1740891038446,-369.81089842,0.00021998,2]
[355094773,1740891038458,-130.18910158,0.00021998,2]
[355094774,1740891038468,-520.86276796,0.00021998,2]
[355094775,1740891038478,-500.0,0.00021998,2]
[355094776,1740891038488,-500.0,0.00021998,2]
[355094777,1740891038498,-500.0,0.00021998,2]
[355094778,1740891038508,-500.0,0.00021998,2]
[355094779,1740891038518,-500.0,0.00021998,2]
[355094780,1740891038527,-500.0,0.00021998,2]
[355094781,1740891038537,-500.0,0.00021998,2]
[355094782,1740891038547,-500.0,0.00021998,2]
[355094783,1740891038556,-500.0,0.00021998,2]
[355094784,1740891038566,-500.0,0.00021998,2]
[355094785,1740891038575,-500.0,0.00021998,2]
[355094786,1740891038584,-500.0,0.00021998,2]
[355094787,1740891038594,-500.0,0.00021998,2]
[355094788,1740891038604,-446.23514798,0.00021999,2]
[355094789,1740891038613,-634.53527332,0.00021999,2]
[355094790,1740891038623,-913.28,0.00021999,2]
[355094791,1740891038632,-500.0,0.00021999,2]
[355094792,1740891038642,-1435.15,0.00021999,2]
[355094793,1740891038651,-500.0,0.00021999,2]
[355094794,1740891038660,-500.0,0.00021999,2]
[355094795,1740891038670,-271.89038706,0.00021999,2]
[355094796,1740891038680,-228.9544066,0.00021999,2]
[355094797,1740891038690,-500.0,0.00021999,2]
[355094798,1740891038703,-694127.94453612,0.00022,2]
[355094799,1740891038713,-291.36,0.00022,7]
[355094800,1740891038723,-899.30471,0.00022,3]
[355094801,1740891038732,-151.0,0.00022,4]
[355094802,1740891038743,-151.0,0.00022,3]
[355094803,1740891038753,-692.71978209,0.00022155,2]
[355094804,1740891038762,-315.47142,0.00022204,2]
[355094805,1740891038773,-3815.13,0.00022269,2]
[355094806,1740891038782,-2139.17,0.00022269,2]
[355094807,1740891038792,-1000.0,0.00022269,5]
[355094808,1740891038801,-670.21,0.00022269,2]
[355094809,1740891038811,-500.0,0.00022269,2]
[355094810,1740891038821,-502.66,0.00022269,2]
[355094811,1740891038832,-500.0,0.00022269,2]
[355094812,1740891038842,-500.0,0.00022269,2]
[355094813,1740891038852,-594.37,0.00022269,2]
[355094814,1740891038862,-358.99,0.00022269,2]
[355094815,1740891038871,-500.0,0.00022269,2]
[355094816,1740891038881,-3134.93,0.00022269,2]
[355094817,1740891038890,-500.0,0.00022269,2]
[355094818,1740891038900,-500.0,0.00022269,2]
[355094819,1740891038909,-767.93,0.00022269,2]
[355094820,1740891038919,-500.0,0.00022269,2]
[355094821,1740891038929,-500.0,0.00022269,2]
[355094822,1740891038939,-7112.25,0.00022269,2]
[355094823,1740891038948,-5667.16,0.00022269,2]
[355094824,1740891038958,-3514.94,0.00022269,2]
[355094825,1740891038967,-500.0,0.0002227,2]
[355094826,1740891038977,-552.3,0.0002227,2]
[355094827,1740891038987,-500.0,0.0002227,2]
[355094828,1740891038996,-546.71483,0.0002227,2]
[355094829,1740891039006,-517.2705118,0.0002227,2]
[355094830,1740891039016,-500.0,0.0002227,2]